bitfinex/quotes_ETHUSD_20250123
["timestamp","ask_amount","ask_price","bid_price","bid_amount"]
[1737659811315,0.2689,3217.1,3215.0,0.002]
[1737659811672,3.10927,3216.2,3215.5,0.8046]
[1737659811959,3.10907,3216.4,3215.6,3.10978]
[1737659812355,3.0,3216.8,3215.7,3.10972]
[1737659812556,6.48578,3217.1,3216.2,3.10924]
[1737659812762,3.10842,3217.1,3216.0,3.10941]
[1737659812955,3.10866,3216.9,3216.1,3.731215]
[1737659813155,3.10871,3216.8,3216.1,3.731215]
[1737659813355,3.10848,3217.0,3216.2,3.10924]
[1737659813556,3.1086,3216.9,3216.2,3.10924]
[1737659813762,3.10868,3216.8,3216.0,3.10943]
[1737659813962,3.10876,3216.8,3216.0,3.10943]
[1737659814258,0.61433828,3217.2,3216.1,3.10932]
[1737659814259,3.10863,3216.9,3216.1,3.10932]
[1737659814723,3.10863,3216.9,3215.9,3.10954]
[1737659814924,3.10863,3216.9,3216.1,3.10935]
[1737659815143,3.10868,3216.8,3216.1,3.10935]
[1737659815558,3.10851,3217.0,3216.2,3.10918]
[1737659815860,0.7724,3218.7,3216.6,3.10887]
[1737659816021,3.10636,3219.2,3217.8,0.8293]
[1737659816365,0.61160292,3219.2,3218.7,3.10676]
[1737659816536,0.61160292,3219.2,3217.9,0.02970067]
[1737659816740,0.61160292,3219.2,3218.8,0.02925627]
[1737659817047,0.61160292,3219.2,3218.8,3.10674]
[1737659817251,0.61160292,3219.2,3218.8,3.1067]
[1737659817455,0.03883425,3219.1,3218.9,0.02921047]
[1737659817663,3.10637,3219.2,3218.4,3.10713]
[1737659817867,3.10647,3219.1,3218.4,3.10713]
[1737659818166,3.10647,3219.1,3218.5,3.13577948]
[1737659818340,3.87817,3219.9,3218.6,3.10689]
[1737659818536,0.61597635,3219.3,3218.6,3.10686]
[1737659818727,3.10597,3219.6,3218.7,0.03035841]
[1737659818925,3.10597,3219.6,3218.9,3.10664]
[1737659819191,3.62964676,3219.7,3217.9,3.0038]
[1737659819192,3.03883372,3219.5,3218.5,3.107]
[1737659819496,6.10607,3219.5,3218.5,3.107]
[1737659819792,6.10607,3219.5,3218.8,3.10672]
[1737659819793,3.3778062,3219.4,3218.8,3.10672]
[1737659820289,3.10635,3219.3,3218.9,0.03056904]
[1737659820489,3.10635,3219.3,3218.6,3.10691]
[1737659820688,3.10635,3219.3,3218.7,3.13719339]
[1737659820889,3.0,3219.4,3218.7,3.13719339]
[1737659821090,3.716777,3219.4,3218.7,0.03037339]
[1737659821294,3.10644,3219.2,3218.3,3.1072]
[1737659821494,3.10655,3219.0,3217.8,0.8293]
[1737659821791,6.10703,3218.5,3217.8,3.1077]
[1737659821995,3.71693108,3218.7,3217.8,3.1077]
[1737659822208,3.0,3218.5,3217.8,3.1077]
[1737659822356,3.10667,3218.9,3218.0,3.10747]
[1737659822777,1.44059732,3219.0,3217.3,0.58107691]
[1737659822994,0.7729,3219.7,3217.7,0.82]
[1737659823194,6.10629,3219.3,3218.6,3.10685]
[1737659823379,3.72678527,3219.7,3219.0,3.10646]
[1737659823585,0.03883363,3219.6,3218.7,3.88655]
[1737659823890,0.03883363,3219.6,3218.7,3.10675]
[1737659823891,3.0,3219.5,3218.7,3.10675]
[1737659824066,3.14487363,3219.6,3218.7,3.10675]
[1737659824268,3.14487363,3219.6,3218.2,0.7798]
[1737659824269,3.72678527,3219.7,3219.0,3.10654]
[1737659824471,3.1059,3219.7,3219.0,3.10654]
[1737659824981,3.10605,3219.6,3218.9,3.10659]
[1737659825194,3.10605,3219.6,3218.8,3.10671]
[1737659825400,6.7228427,3219.8,3219.0,3.10647]
[1737659825696,3.10588,3219.7,3219.1,3.10637]
[1737659825890,3.10588,3219.7,3218.9,3.10658]
[1737659826061,3.10599,3219.6,3219.0,3.10654]
[1737659826257,0.6170327,3219.8,3218.4,3.65713]
[1737659826258,0.6170327,3219.8,3218.4,0.55]
[1737659826581,0.6170327,3219.8,3218.5,0.03106471]
[1737659826837,0.6170327,3219.8,3219.4,3.10614]
[1737659827149,0.6170327,3219.8,3218.9,0.55]
[1737659827327,0.6170327,3219.8,3219.7,3.10587]
[1737659827914,0.6170327,3219.8,3219.5,3.10598]
[1737659828455,3.10627,3219.3,3219.1,0.23]
[1737659828656,3.14519654,3219.2,3219.1,0.23]
[1737659828820,6.77033319,3219.2,3219.1,0.23]
[1737659829016,6.73149665,3219.2,3219.1,0.23]
[1737659830844,6.10636,3219.2,3219.1,0.23]
[1737659831680,3.0,3219.2,3219.1,0.23]
[1737659832387,3.0,3219.2,3219.1,3.33645]
[1737659832671,3.0,3219.2,3219.1,0.23]
[1737659832877,6.14519731,3219.2,3219.1,0.23]
[1737659833959,6.10636,3219.2,3219.1,0.23]
[1737659834143,3.0,3219.2,3219.1,0.23]
[1737659834339,6.10636,3219.2,3219.1,0.23]
[1737659834975,3.0,3219.2,3219.1,0.23]
[1737659835315,0.11638179,3219.2,3219.1,0.23]
[1737659835985,0.11638179,3219.2,3219.1,3.33645]
[1737659836294,0.11638179,3219.2,3219.1,0.23]
[1737659836651,6.10636,3219.2,3219.1,0.23]
[1737659836848,6.14519712,3219.2,3219.1,0.23]
[1737659837360,6.76339949,3219.2,3219.1,0.23]
[1737659837569,6.72456237,3219.2,3219.1,0.23]
[1737659840358,6.84089878,3219.2,3219.1,0.23]
[1737659842863,6.34089878,3219.2,3219.1,0.23]
[1737659843191,3.0,3219.1,3217.7,3.89184]
[1737659843391,3.10715,3218.4,3217.8,3.1077]
[1737659843555,3.0,3218.3,3217.8,0.03402109]
[1737659844072,3.0,3218.5,3217.9,0.03396381]
[1737659844382,3.10683,3218.8,3218.2,3.10731]
[1737659844568,0.63501235,3218.4,3218.0,3.10752]
[1737659844773,0.63501235,3218.4,3218.1,3.10741]
[1737659844982,0.11633641,3218.7,3218.2,3.10732]
[1737659845174,3.10695,3218.6,3218.1,0.621493]
[1737659845388,3.10695,3218.6,3218.0,3.1075]
[1737659845909,3.10695,3218.6,3218.0,3.14818784]
[1737659846110,3.10695,3218.6,3218.0,3.1075]
[1737659846313,3.11633641,3218.7,3218.1,3.10736]
[1737659846526,3.10701,3218.6,3218.0,3.10748]
[1737659847022,0.11633641,3218.5,3218.1,0.03147062]
[1737659847227,0.11633641,3218.5,3218.1,3.13881062]
[1737659847399,0.11633641,3218.5,3218.2,3.10727]
[1737659847711,0.11633641,3218.5,3218.3,0.03135323]
[1737659847916,0.11633641,3218.5,3218.2,3.10727]
[1737659848080,6.21316,3219.0,3218.3,3.14118864]
[1737659848412,6.21316,3219.0,3218.3,0.03397864]
[1737659848413,0.61658074,3218.8,3218.3,0.03397864]
[1737659848623,0.61658074,3218.8,3218.4,3.10712]
[1737659848913,3.10714,3218.4,3217.8,3.10768]
[1737659849415,3.10725,3218.3,3217.7,0.7841]
[1737659849716,3.10721,3218.4,3217.8,3.10769]
[1737659849914,3.10721,3218.4,3217.8,3.10764]
[1737659850434,3.0,3218.6,3218.1,3.10736]
[1737659850596,3.10704,3218.5,3217.9,3.10758]
[1737659850786,0.11633641,3218.3,3217.9,3.10758]
[1737659851113,0.11633641,3218.3,3218.0,3.1075]
[1737659851503,0.11633641,3218.3,3217.7,0.7841]
[1737659851710,0.11633641,3218.3,3218.1,3.10737]
[1737659852284,0.11633641,3218.5,3218.1,3.10737]
[1737659852693,0.11633641,3218.5,3217.7,3.89185]
[1737659852896,3.1072,3218.4,3217.7,3.89183]
[1737659853097,3.10732,3218.2,3217.7,3.89183]
[1737659853811,3.1072,3218.4,3217.7,3.89183]
[1737659854011,0.6314396,3218.3,3217.9,3.1076]
[1737659854407,0.6314396,3218.3,3218.0,3.10744]
[1737659854601,0.6314396,3218.3,3217.8,3.10764]
[1737659855522,0.6314396,3218.3,3217.9,3.10759]
[1737659856207,0.6314396,3218.3,3217.7,3.89182]
[1737659856412,0.6314396,3218.3,3218.0,3.1075]
[1737659856723,3.10696,3218.6,3218.0,3.1075]
[1737659856955,3.10709,3218.5,3218.0,3.1075]
[1737659857255,3.10714,3218.4,3217.7,3.89186]
[1737659857442,0.61068369,3218.3,3217.7,0.7841]
[1737659858223,3.71791369,3218.3,3217.7,0.7841]
[1737659858422,3.10734,3218.2,3217.7,0.7841]
[1737659858855,0.61068369,3218.3,3217.7,0.7841]
[1737659859023,3.10734,3218.2,3217.7,0.7841]
[1737659859359,3.66264352,3218.2,3217.7,0.7841]
[1737659859661,3.10747,3218.1,3217.7,0.7841]
[1737659860163,3.10839,3217.1,3216.7,0.8239]
[1737659860359,3.10886,3216.7,3216.3,0.32111508]
[1737659860659,3.10896,3216.6,3216.1,0.005]
[1737659860962,3.10925,3216.2,3216.1,0.005]
[1737659861634,6.10925,3216.2,3216.1,0.005]
[1737659862768,6.14812411,3216.2,3216.1,0.005]
[1737659863264,3.0,3216.2,3215.1,0.7991]
[1737659863423,3.10977,3215.7,3215.1,0.7991]
[1737659863628,3.10966,3215.8,3215.1,0.7991]
[1737659863929,3.11019,3215.3,3215.0,0.002]
[1737659864265,3.0,3216.2,3215.0,0.002]
[1737659864492,3.10981,3215.7,3215.0,0.002]
[1737659864698,3.10972,3215.8,3215.0,3.11239]
[1737659864895,3.10929,3216.2,3215.3,0.55]
[1737659865057,3.10907,3216.4,3215.5,1.3324]
[1737659865253,3.1089,3216.6,3215.6,3.10975]
[1737659865457,3.10908,3216.4,3215.7,38.10972]
[1737659865659,3.10925,3216.2,3215.7,35.0]
[1737659866092,0.63161754,3216.3,3215.7,35.0]
[1737659866795,3.74085754,3216.3,3215.7,35.0]
[1737659866993,3.10931,3216.2,3215.7,35.0]
[1737659867195,3.10938,3216.1,3215.7,35.0]
[1737659867691,0.63161754,3216.3,3215.7,35.0]
[1737659867692,3.74084754,3216.3,3215.7,35.0]
[1737659867994,0.63161754,3216.3,3215.7,35.0]
[1737659868174,3.10926,3216.2,3215.7,35.0]
[1737659868373,3.10926,3216.2,3215.6,0.55]
[1737659868774,3.10926,3216.2,3215.7,35.0]
[1737659868977,3.10926,3216.2,3215.6,0.55]
[1737659869479,3.10926,3216.2,3215.6,35.55]
[1737659869681,0.63161754,3216.3,3215.6,38.6598]
[1737659869977,0.63161754,3216.3,3215.8,3.10963]
[1737659870388,3.10865,3216.9,3216.0,3.10943]
[1737659870686,3.33223146,3217.4,3216.5,0.55]
[1737659870687,0.61682062,3216.8,3216.5,0.55]
[1737659870996,0.22408146,3217.4,3216.8,0.55]
[1737659871200,0.22408146,3217.4,3217.0,0.8096]
[1737659871368,0.22408146,3217.4,3217.3,3.65819]
[1737659871562,0.22408146,3218.3,3217.4,1.3596]
[1737659871768,0.03884456,3218.2,3217.4,0.8096]
[1737659871999,3.1078,3217.8,3217.4,0.8096]
[1737659872332,3.10753,3218.0,3217.4,0.8096]
[1737659872502,3.10777,3217.8,3217.4,0.8096]
[1737659872701,3.10801,3217.5,3216.9,0.8096]
[1737659872898,0.8282,3217.8,3216.9,0.8096]
[1737659873123,3.10819,3217.4,3216.9,0.8096]
[1737659873503,0.63715536,3217.5,3216.9,3.91816]
[1737659873709,0.63715536,3217.5,3216.5,3.10893]
[1737659873927,3.1086,3216.9,3216.1,3.10928]
[1737659874264,3.10888,3216.6,3216.0,0.7732]
[1737659874609,3.10898,3216.5,3216.1,0.55]
[1737659874826,3.10871,3216.8,3216.1,3.65929]
[1737659875029,3.10878,3216.7,3216.1,3.65929]
[1737659875501,3.10878,3216.7,3216.0,0.7732]
[1737659875720,3.10873,3216.8,3216.0,0.7732]
[1737659875957,3.72039994,3217.0,3216.3,3.10915]
[1737659876631,3.72039994,3217.0,3216.4,3.10904]
[1737659876925,0.61190994,3217.0,3216.4,3.10901]
[1737659877123,3.10919,3216.3,3216.0,0.7732]
[1737659877367,3.10919,3216.3,3215.6,0.7508]
[1737659877679,3.10939,3216.1,3215.6,0.7508]
[1737659877879,3.10945,3216.0,3215.1,3.86108]
[1737659878088,3.10983,3215.7,3215.1,0.7508]
[1737659878221,3.71791642,3215.9,3215.2,0.06523425]
[1737659878427,3.10975,3215.7,3215.2,0.0341335]
[1737659878623,3.10937,3216.1,3215.2,3.1443335]
[1737659878924,3.10955,3215.9,3215.3,3.11009]
[1737659879160,3.10955,3215.9,3215.4,0.03711137]
[1737659879739,3.10955,3215.9,3215.2,3.81095735]
[1737659879939,3.10955,3215.9,3215.5,0.03704879]
[1737659880243,3.10976,3215.7,3215.1,3.86104]
[1737659880568,0.63435224,3216.1,3215.1,0.7508]
[1737659880779,0.8121,3215.9,3215.0,0.002]
[1737659880984,3.1103,3215.2,3215.0,0.002]
[1737659881203,0.8121,3215.9,3215.0,0.002]
[1737659881204,3.11,3215.5,3215.0,0.002]
[1737659881490,3.11008,3215.4,3215.0,0.002]
[1737659881943,3.11015,3215.3,3215.0,0.002]
[1737659882144,3.1102,3215.3,3215.0,0.002]
[1737659882353,3.1103,3215.2,3215.0,0.002]
[1737659883084,3.11032,3215.1,3215.0,0.002]
[1737659884930,3.90546267,3215.1,3215.0,0.002]
[1737659885133,6.90546267,3215.1,3215.0,1e-05]
[1737659885330,6.86658138,3215.1,3215.0,1e-05]
[1737659885759,6.99390899,3215.1,3215.0,1e-05]
[1737659886189,4.40302896,3215.1,3215.0,1e-05]
[1737659886731,4.44191505,3215.1,3215.0,1e-05]
[1737659887199,3.78096696,3215.1,3215.0,1e-05]
[1737659887429,3.65363935,3215.1,3215.0,1e-05]
[1737659887561,0.54331935,3215.1,3215.0,1e-05]
[1737659887763,3.65363935,3215.1,3215.0,1e-05]
[1737659888378,0.54331935,3215.1,3215.0,0.78121]
[1737659888580,3.65363935,3215.1,3215.0,0.78121]
[1737659889033,3.65363935,3215.1,3215.0,1e-05]
[1737659889372,4.33003429,3215.1,3215.0,1e-05]
[1737659889600,3.92091432,3215.1,3215.0,1e-05]
[1737659890318,3.95980151,3215.1,3215.0,1e-05]
[1737659890521,3.11109,3214.3,3214.2,0.1640512]
[1737659891777,3.11071,3214.7,3214.2,0.1640512]
[1737659892027,1.60829453,3215.1,3214.5,0.7812]
[1737659892174,3.37205952,3215.1,3214.5,0.7812]
[1737659892609,0.13419938,3215.1,3214.6,4.049973]
[1737659892878,0.13419938,3215.1,3214.6,0.389213]
[1737659893129,0.13419938,3215.1,3214.7,3.11067]
[1737659893331,0.13419938,3215.1,3215.0,3.66041]
[1737659893634,0.13419938,3215.1,3215.0,4.44780895]
[1737659893842,0.13419938,3215.1,3215.0,4.4478071]
[1737659893996,0.42733654,3215.6,3215.5,0.7563]
[1737659894443,0.21494655,3215.6,3215.5,3.86623]
[1737659894598,0.21494655,3215.6,3215.5,4.41623]
[1737659895276,0.22408146,3216.7,3215.5,4.41623]
[1737659895486,0.22408146,3216.7,3215.7,3.87311]
[1737659895713,0.22408146,3216.7,3215.8,3.50006003]
[1737659895878,0.22408146,3216.7,3215.9,3.10954]
[1737659896337,0.22408146,3216.7,3216.2,0.7634]
[1737659896628,1.30498892,3218.0,3216.4,3.10902]
[1737659896979,0.62244081,3217.4,3216.6,0.7634]
[1737659897424,0.47888892,3218.0,3216.6,0.7634]
[1737659897584,3.10868,3216.8,3215.9,0.7634]
[1737659897781,3.10868,3216.8,3215.1,0.7634]
[1737659897782,3.10942,3216.1,3215.1,0.7634]
[1737659898033,3.10954,3215.9,3215.1,0.7634]
[1737659898185,3.14777733,3216.6,3215.1,0.7634]
[1737659898186,0.03886733,3216.6,3215.1,0.7634]
[1737659898516,3.10955,3215.9,3215.1,0.7634]
[1737659898718,0.36265662,3216.5,3215.1,0.7634]
[1737659898719,0.03887264,3215.8,3215.1,0.7634]
[1737659898924,3.1099,3215.6,3215.1,0.7634]
[1737659899720,3.10966,3215.8,3215.1,0.7634]
[1737659900825,3.10996,3215.5,3215.1,0.7634]
[1737659901017,3.10994,3215.5,3215.1,0.7634]
[1737659901322,3.11004,3215.4,3215.1,0.7634]
[1737659901484,3.11022,3215.2,3215.1,0.7634]
[1737659901680,3.11048,3215.0,3214.4,0.8062]
[1737659901880,0.7729,3215.5,3214.4,0.8062]
[1737659902108,3.11109,3214.3,3213.9,0.8062]
[1737659903823,3.24416103,3214.3,3213.9,0.8062]
[1737659904043,3.24416103,3214.3,3213.5,0.78961176]
[1737659904225,0.13307103,3214.3,3213.6,3.11171]
[1737659904404,0.13307103,3214.3,3213.7,3.14278049]
[1737659904719,0.13307103,3214.3,3213.7,0.03111049]
[1737659904921,0.13307103,3214.3,3214.2,4.0337412]
[1737659905441,3.11051,3214.9,3214.2,0.9225512]
[1737659906209,3.11035,3215.1,3214.2,4.0337212]
[1737659906413,0.19444684,3215.2,3214.5,3.11089]
[1737659906612,0.19444684,3215.2,3214.5,3.76729477]
[1737659906859,3.1105,3215.0,3214.5,0.62530054]
[1737659907013,3.11054,3214.9,3214.2,4.0337412]
[1737659907374,3.11054,3214.9,3214.2,0.9225512]
[1737659907375,3.11072,3214.7,3214.2,0.9225512]
[1737659907511,0.03888069,3214.9,3214.2,0.9225512]
[1737659907512,3.11109,3214.3,3214.2,0.1640512]
[1737659909134,3.11081,3214.6,3214.2,0.1640512]
[1737659909435,3.11101,3214.4,3214.2,0.1640512]
[1737659909757,0.22202519,3215.4,3214.2,0.1640512]
[1737659909957,0.62836607,3215.3,3214.3,0.82430363]
[1737659910122,0.62836607,3215.3,3214.3,0.7932]
[1737659910651,3.11038,3215.1,3214.3,3.90427]
[1737659910856,0.47030643,3215.3,3214.7,3.1107]
[1737659911233,3.11029,3215.2,3214.5,0.7932]
[1737659911429,3.11067,3214.8,3214.5,0.7932]
[1737659912557,3.1108,3214.6,3214.2,0.1640512]
[1737659912762,3.11067,3214.8,3214.2,0.1640512]
[1737659912918,0.13327862,3215.1,3214.2,0.1640512]
[1737659913120,3.11061,3214.8,3214.2,0.1640512]
[1737659913735,3.11044,3215.0,3214.2,0.1640512]
[1737659913736,3.11072,3214.7,3214.2,0.50182964]
[1737659914129,3.11055,3214.9,3214.2,0.1640512]
[1737659914345,3.11081,3214.6,3214.3,0.03712018]
[1737659914558,3.11051,3214.9,3214.2,0.1640512]
[1737659914735,0.13327862,3215.0,3214.3,0.03714334]
[1737659915059,3.11088,3214.6,3214.3,0.03714334]
[1737659915435,3.11088,3214.6,3214.2,0.1640512]
[1737659915638,6.22178,3214.6,3214.4,0.03708071]
[1737659915853,3.11029,3215.2,3214.3,0.03714334]
[1737659916037,0.37179968,3215.1,3214.5,0.03701809]
[1737659916237,3.11086,3214.6,3214.4,0.03708071]
[1737659916450,3.11086,3214.6,3214.5,0.03701809]
[1737659916647,3.71784678,3215.3,3214.5,0.03701809]
[1737659916845,3.1104,3215.1,3214.2,3.2751812]
[1737659917051,6.35406599,3215.1,3214.3,3.11109]
[1737659917248,0.13327599,3215.1,3214.3,3.14818642]
[1737659917466,3.11042,3215.0,3214.3,3.14818642]
[1737659917625,3.24366599,3215.1,3214.3,3.14818642]
[1737659918164,3.24366599,3215.1,3214.4,3.14208475]
[1737659918359,3.24366599,3215.1,3214.4,3.8278938]
[1737659918561,3.24366599,3215.1,3214.4,0.68580905]
[1737659918760,3.11039,3215.1,3214.4,0.68580905]
[1737659919057,3.11039,3215.1,3214.4,3.82787381]
[1737659919260,3.11039,3215.1,3214.5,0.8011]
[1737659919460,3.11013,3215.3,3214.5,4.68592638]
[1737659919763,3.1101,3215.4,3214.5,4.68592638]
[1737659919965,3.11023,3215.2,3214.5,4.68592638]
[1737659920163,3.11042,3215.0,3214.5,1.57510638]
[1737659920662,0.22202519,3216.2,3214.7,3.11065]
[1737659920889,3.11035,3215.1,3214.8,0.387605]
[1737659921090,3.11067,3214.8,3214.6,0.7654]
[1737659921252,0.0388824,3215.6,3214.6,0.7654]
[1737659921589,3.11109,3214.3,3214.2,0.9238512]
[1737659921885,3.111,3214.4,3214.2,0.1640512]
[1737659922048,3.11092,3214.5,3214.2,0.1640512]
[1737659922250,3.11065,3214.8,3214.2,0.1640512]
[1737659922479,3.8034,3215.3,3214.3,0.7598]
[1737659922664,3.11091,3214.5,3214.3,0.7598]
[1737659922862,3.11071,3214.7,3214.3,0.7598]
[1737659923086,3.11052,3214.9,3214.3,0.7598]
[1737659923680,3.11062,3214.8,3214.3,0.7598]
[1737659923854,3.11052,3214.9,3214.3,0.7598]
[1737659924052,3.11052,3214.9,3214.3,4.27437212]
[1737659924263,0.8221,3215.7,3214.5,3.11089]
[1737659924496,3.11002,3215.5,3214.8,3.1106]
[1737659924665,3.11023,3215.2,3214.7,0.7728]
[1737659924900,0.22202519,3215.8,3214.7,0.7728]
[1737659924901,3.11043,3215.0,3214.7,0.7728]
[1737659926571,3.11053,3214.9,3214.7,0.7728]
[1737659926771,3.11073,3214.7,3214.3,0.775]
[1737659927101,3.11089,3214.6,3214.3,0.775]
[1737659927499,3.11073,3214.7,3214.3,0.775]
[1737659927661,3.11082,3214.6,3214.3,0.775]
[1737659927861,3.11073,3214.7,3214.3,0.775]
[1737659928564,6.22153,3214.7,3214.3,0.775]
[1737659929070,3.11091,3214.5,3214.3,0.775]
[1737659929287,6.22151,3214.7,3214.3,0.775]
[1737659929608,3.11084,3214.6,3214.3,0.775]
[1737659930116,3.11081,3214.6,3214.3,0.775]
[1737659932209,3.11072,3214.7,3214.3,0.775]
[1737659932418,3.11021,3215.3,3214.6,3.1108]
[1737659932617,3.11021,3215.3,3214.3,0.775]
[1737659932618,0.22202519,3215.5,3215.0,3.11041]
[1737659932906,0.22202519,3215.5,3215.4,3.11003]
[1737659933110,0.22202519,3215.5,3215.4,3.94243]
[1737659933479,0.22202519,3215.5,3215.4,0.8324]
[1737659933683,0.13403174,3215.5,3214.8,0.8322]
[1737659933896,3.11029,3215.2,3214.8,0.8322]
[1737659934287,3.11003,3215.4,3214.8,0.8322]
[1737659934468,0.13403174,3215.5,3214.9,0.03110253]
[1737659934816,3.11004,3215.4,3214.8,1.53756]
[1737659935125,3.11021,3215.3,3214.8,0.8322]
[1737659935469,0.13403174,3215.4,3214.8,0.8322]
[1737659935714,3.11039,3215.1,3214.8,0.8322]
[1737659936418,0.13403174,3215.4,3214.8,0.8322]
[1737659936617,3.11061,3214.8,3214.3,0.7645]
[1737659937198,3.11043,3215.0,3214.3,1.16847412]
[1737659937397,3.11043,3215.0,3214.4,3.11097]
[1737659937728,3.11025,3215.2,3214.3,1.16847412]
[1737659937927,3.11064,3214.8,3214.3,0.7645]
[1737659938224,3.11035,3215.1,3214.4,3.11093]
[1737659938431,3.11043,3215.0,3214.4,3.11093]
[1737659938984,3.11035,3215.1,3214.5,3.11084]
[1737659939670,0.60966389,3215.5,3214.4,0.58110472]
[1737659939871,3.1101,3215.4,3214.7,3.11065]
[1737659940021,3.11014,3215.3,3214.7,3.11065]
[1737659940463,3.23673545,3215.4,3214.8,3.11061]
[1737659940667,3.11048,3215.0,3214.3,3.87555]
[1737659940957,0.12663545,3215.4,3214.2,0.1640512]
[1737659940958,3.11096,3214.5,3214.2,0.1640512]
[1737659941170,3.11046,3215.0,3214.3,0.7608]
[1737659941381,0.16551813,3215.4,3214.3,0.7608]
[1737659941545,3.111,3214.4,3214.3,0.7608]
[1737659942022,3.11109,3214.3,3214.2,0.1640512]
[1737659942230,3.77218925,3214.3,3214.2,0.1640512]
[1737659942463,3.733299,3214.3,3214.2,0.1640512]
[1737659942817,3.11109,3214.3,3214.2,0.1640512]
[1737659943974,3.11109,3214.3,3214.2,0.19847514]
[1737659944336,3.11109,3214.3,3214.2,0.1640512]
[1737659945579,3.11109,3214.3,3214.2,0.19845391]
[1737659945740,3.11109,3214.3,3214.2,0.1640512]
[1737659946951,3.733297,3214.3,3214.2,0.1640512]
[1737659947477,3.85979697,3214.3,3214.2,0.1640512]
[1737659948732,3.98007437,3214.3,3214.2,0.1640512]
[1737659948938,4.18236191,3214.3,3214.2,0.1640512]
[1737659952295,7.97456191,3214.3,3214.2,1.2e-06]
[1737659952496,8.37763398,3214.3,3214.2,1.2e-06]
[1737659952796,3.90407,3213.5,3213.4,6.67e-06]
[1737659953093,10.86353543,3213.5,3213.4,6.67e-06]
[1737659953293,11.6520148,3213.5,3213.4,6.67e-06]
[1737659953496,3.90484,3212.7,3212.5,0.005]
[1737659953794,7.8769705,3212.7,3212.5,0.005]
[1737659953984,3.11264,3212.7,3212.5,0.005]
[1737659954381,7.42449283,3212.7,3212.5,0.005]
[1737659954706,8.04048445,3212.7,3212.5,0.005]
[1737659955194,3.11274,3212.6,3212.5,7.71e-06]
[1737659957608,3.15165455,3212.6,3212.5,7.71e-06]
[1737659957760,3.11274,3212.6,3212.5,7.71e-06]
[1737659958115,3.11224,3213.2,3212.5,7.71e-06]
[1737659958116,3.11238,3213.0,3212.6,0.8058]
[1737659958312,3.11221,3213.2,3212.6,3.91854]
[1737659958556,3.11185,3213.6,3213.1,3.11225]
[1737659958716,0.22202519,3214.0,3213.4,3.11195]
[1737659958923,0.22202519,3214.0,3213.8,0.8183]
[1737659959133,0.22202519,3214.0,3213.9,8.07995108]
[1737659959334,3.73757068,3215.5,3214.1,0.8183]
[1737659959540,3.10946,3216.0,3214.5,0.8183]
[1737659959720,3.10946,3216.0,3214.8,0.8183]
[1737659959902,3.10962,3215.9,3215.2,3.11016]
[1737659960302,0.63560059,3216.2,3214.8,0.8183]
[1737659960561,3.56905843,3215.9,3214.8,0.8183]
[1737659960854,3.10984,3215.6,3214.8,0.8183]
[1737659961057,3.10984,3215.6,3214.8,1.211191]
[1737659961256,3.10984,3215.6,3214.9,3.11051]
[1737659961407,3.10943,3216.1,3214.9,3.11051]
[1737659961408,3.1098,3215.7,3214.9,3.11051]
[1737659961760,3.11009,3215.4,3214.8,1.211191]
[1737659961908,3.11029,3215.2,3214.8,0.8183]
[1737659962152,3.11048,3215.0,3214.8,0.8183]
[1737659962662,3.11051,3214.9,3214.8,0.8183]
[1737659962837,3.11061,3214.8,3214.4,0.8327]
[1737659963370,3.10989,3215.6,3214.7,3.11069]
[1737659963660,3.10997,3215.5,3214.8,3.45272997]
[1737659963814,3.10967,3215.8,3215.0,3.11041]
[1737659964009,3.10987,3215.6,3215.0,3.11041]
[1737659964214,3.10967,3215.8,3215.1,3.87123]
[1737659964418,0.60959671,3215.9,3215.1,3.87123]
[1737659964419,3.71914671,3215.9,3215.2,3.11014]
[1737659964654,3.71914671,3215.9,3215.2,3.50036409]
[1737659964842,3.71914671,3215.9,3215.1,0.761]
[1737659965155,3.10976,3215.7,3215.1,3.87131]
[1737659965660,3.10955,3215.9,3215.2,0.55]
[1737659965966,3.10955,3215.9,3215.1,3.87131]
[1737659966168,3.10936,3216.1,3215.3,3.11006]
[1737659966460,3.10913,3216.4,3215.4,0.34210046]
[1737659966638,3.10923,3216.3,3215.8,0.7625]
[1737659967066,0.03886618,3216.4,3215.4,0.7625]
[1737659967264,3.10982,3215.7,3215.4,0.7625]
[1737659967862,3.10973,3215.8,3215.4,0.7625]
[1737659968062,3.10976,3215.7,3215.4,0.7625]
[1737659968365,3.10993,3215.5,3214.9,3.9291]
[1737659968526,3.10993,3215.5,3215.0,0.55]
[1737659968719,3.1098,3215.7,3215.0,3.6604]
[1737659968968,3.10967,3215.8,3215.0,0.55]
[1737659969148,3.1099,3215.6,3215.0,0.55]
[1737659969468,3.10976,3215.7,3215.1,3.11029]
[1737659969639,3.10984,3215.6,3215.0,3.66041]
[1737659970056,3.10967,3215.8,3215.1,3.11029]
[1737659970239,3.10967,3215.8,3215.0,4.52398439]
[1737659971035,3.10967,3215.8,3214.9,0.8186]
[1737659971036,3.56616698,3216.2,3214.9,0.8186]
[1737659971354,3.11041,3215.0,3214.3,0.8238]
[1737659971554,3.1107,3214.8,3214.3,0.8238]
[1737659971757,3.56616698,3215.0,3213.8,0.7509]
[1737659971928,3.11145,3214.0,3213.8,0.7509]
[1737659972125,3.11084,3214.6,3213.8,0.7509]
[1737659972369,0.7548,3214.7,3213.8,0.7509]
[1737659972370,3.1112,3214.2,3213.8,0.7509]
[1737659972582,3.11129,3214.1,3213.8,0.7509]
[1737659972732,3.11116,3214.3,3213.8,0.7509]
[1737659972933,3.11129,3214.1,3213.8,0.7509]
[1737659973333,3.11139,3214.0,3213.8,0.7509]
[1737659973578,3.11126,3214.2,3213.8,0.7509]
[1737659973730,3.1113,3214.1,3213.8,0.7509]
[1737659974074,3.11118,3214.3,3213.8,0.7509]